fUSD/lending_fUSD_20240506
["ID","MTS","AMOUNT","RATE_DAILY","PERIOD"]
[326470583,1714960244589,-150.44,0.00019199,2]
[326470584,1714960244599,-775.26,0.000192,2]
[326470585,1714960244608,-960.58,0.000192,2]
[326470586,1714960244618,-468.56,0.000192,2]
[326470587,1714960244628,-2301.0,0.00019209,2]
[326470588,1714960244640,-971.0,0.00019209,2]
[326470589,1714960244650,-463.0,0.00019209,2]
[326470590,1714960244660,-1397.0,0.00019209,2]
[326470591,1714960244670,-1227.0,0.00019209,2]
[326470592,1714960244680,-1259.0,0.00019209,2]
[326470593,1714960244691,-543.0,0.00019209,2]
[326470594,1714960244700,-611.0,0.00019209,2]
[326470595,1714960244710,-808.0,0.00019209,2]
[326470596,1714960244723,-1787.0,0.00019209,2]
[326470597,1714960244733,-438.0,0.00019209,2]
[326470598,1714960244743,-1477.0,0.00019209,2]
[326470599,1714960244752,-2451.0,0.00019209,2]
[326470600,1714960244762,-421.0,0.00019209,2]
[326470601,1714960244772,-150.0,0.00019209,2]
[326470602,1714960244781,-1139.0,0.00019209,2]
[326470603,1714960244791,-215.0,0.00019209,2]
[326470604,1714960244804,-444.0,0.00019209,2]
[326470605,1714960244813,-1644.0,0.00019209,2]
[326470606,1714960244822,-3152.0,0.00019209,2]
[326470607,1714960244832,-288.0,0.00019209,2]
[326470608,1714960244842,-37783.0,0.00019209,2]
[326470609,1714960244851,-2294.0,0.00019209,2]
[326470610,1714960244861,-5742.0,0.00019209,2]
[326470611,1714960244871,-5904.0,0.00019209,2]
[326470612,1714960244885,-150.0,0.00019209,2]
[326470613,1714960244895,-500.0,0.00019249,2]
[326470614,1714960244904,-500.0,0.00019249,2]
[326470615,1714960244914,-500.0,0.00019249,2]
[326470616,1714960244924,-500.0,0.00019249,2]
[326470617,1714960244935,-500.0,0.00019249,2]
[326470618,1714960244944,-500.0,0.00019249,2]
[326470619,1714960244954,-500.0,0.00019249,2]
[326470620,1714960244970,-500.0,0.00019249,2]
[326470621,1714960244979,-500.0,0.00019249,2]
[326470622,1714960244989,-500.0,0.00019249,2]
[326470623,1714960244998,-500.0,0.00019249,2]
[326470624,1714960245009,-500.0,0.00019249,2]
[326470625,1714960245019,-500.0,0.00019249,2]
[326470626,1714960245029,-500.0,0.00019249,2]
[326470627,1714960245039,-500.0,0.00019249,2]
[326470628,1714960245054,-500.0,0.00019249,2]
[326470629,1714960245064,-500.0,0.00019249,2]
[326470630,1714960245074,-500.0,0.00019249,2]
[326470631,1714960245085,-500.0,0.00019249,2]
[326470632,1714960245094,-500.0,0.00019249,2]
[326470633,1714960245104,-500.0,0.00019249,2]
[326470634,1714960245113,-500.0,0.00019249,2]
[326470635,1714960245123,-500.0,0.00019249,2]
[326470636,1714960245139,-500.0,0.00019249,2]
[326470637,1714960245148,-500.0,0.00019249,2]
[326470638,1714960245158,-500.0,0.00019249,2]
[326470639,1714960245169,-500.0,0.00019249,2]
[326470640,1714960245179,-500.0,0.00019249,2]
[326470641,1714960245189,-500.0,0.00019249,2]
[326470642,1714960245199,-500.0,0.00019249,2]
[326470643,1714960245214,-500.0,0.00019249,2]
[326470644,1714960245224,-500.0,0.00019249,2]
[326470645,1714960245234,-307.86,0.00019249,2]
[326470646,1714960245244,-185.71,0.00019321,2]
[326470647,1714960245254,-150.44,0.00019428,2]
[326470648,1714960245264,-152.0,0.00019428,11]
[326470649,1714960245274,-33132.12244875,0.00019438,2]
[326470650,1714960245284,-150.0,0.000195,2]
[326470651,1714960245296,-414.53,0.000195,2]
[326470652,1714960245305,-911.93,0.000195,2]
[326470653,1714960245315,-150.0,0.00019536,2]
[326470654,1714960245325,-150.0,0.00019605,2]
[326470655,1714960245335,-150.0,0.00019605,2]
[326470656,1714960245345,-150.0,0.00019605,2]
[326470657,1714960245355,-150.0,0.00019605,2]
[326470658,1714960245606,-150.0,0.00019605,2]
[326470659,1714960245621,-150.0,0.00019605,2]
[326470660,1714960245630,-150.0,0.00019605,2]
[326470661,1714960245640,-150.0,0.00019605,2]
[326470662,1714960245649,-150.0,0.00019605,2]
[326470663,1714960245658,-9561.5171048,0.00019616,2]
[326470664,1714960245667,-150.0,0.00019616,3]
[326470665,1714960245677,-151.0,0.00019629,2]
[326470666,1714960245688,-152.0,0.00019689,12]
[326470667,1714960245702,-4937.03461837,0.00019699,2]
[326470668,1714960245711,-1602.775781,0.00019797,2]
[326470669,1714960245721,-232.0,0.0001981,2]
[326470670,1714960245730,-160.28510483,0.000199,2]
[326470671,1714960245740,-152.0,0.00019949,13]
[326470672,1714960245749,-246.72987901,0.00019949,5]
[326470673,1714960245758,-505.49150186,0.0001999,2]
[326470674,1714960245768,-150.44,0.0001999,2]
[326470675,1714960245783,-1769.36965514,0.0002,2]
[326470676,1714960245793,-155.0,0.0002,2]
[326470677,1714960245802,-1259.69910324,0.0002,2]
[326470678,1714960245812,-626.72109604,0.0002,2]
[326470679,1714960245821,-6227.96764145,0.0002,2]
[326470680,1714960245831,-5176.53718136,0.0002,2]
[326470681,1714960245840,-860.62916183,0.0002,2]
[326470682,1714960245852,-358.34672107,0.0002,2]
[326470683,1714960245862,-11596.9922787,0.0002,5]
[326470684,1714960245872,-2000.0,0.0002,15]
[326470685,1714960245881,-342.0,0.0002,2]
[326470686,1714960245891,-155.0,0.0002,2]
[326470687,1714960245900,-500.0,0.0002,3]
[326470688,1714960245910,-871.08228591,0.0002,2]
[326470689,1714960245919,-151.0,0.0002,2]
[326470690,1714960245931,-1008.323564,0.0002,2]
[326470691,1714960245942,-247.2906,0.0002,2]
[326470692,1714960245951,-247.2906,0.0002,2]
[326470693,1714960245961,-1500.0,0.00020006,2]
[326470694,1714960245977,-1500.0,0.00020024,2]
[326470695,1714960245986,-150.0,0.00020086,2]
[326470696,1714960245996,-275.76499435,0.00020115,2]
[326470697,1714960246006,-538.93137612,0.0002017,2]
[326470698,1714960246021,-604.8339613,0.00020172,2]
[326470699,1714960246030,-540.7234257,0.00020172,2]
[326470700,1714960246040,-263.6675254,0.00020186,2]
[326470701,1714960246051,-33486.3857336,0.00020186,2]
[326470702,1714960246062,-706.0,0.000202,2]
[326470703,1714960246071,-1000.0,0.000202,2]
[326470704,1714960246081,-300.0,0.00020208,2]
[326470705,1714960246101,-150.0,0.00020224,2]
[326470706,1714960246113,-1500.0,0.00020235,2]
[326470707,1714960246123,-150.0,0.00020246,2]
[326470708,1714960246134,-1500.0,0.00020267,2]
[326470709,1714960246145,-300.0,0.00020267,2]
[326470710,1714960246155,-150.44,0.00020292,2]
[326470711,1714960246165,-1500.0,0.00020293,2]
[326470712,1714960246179,-793.13246384,0.00020294,2]
[326470713,1714960246193,-1500.0,0.00020317,2]
[326470714,1714960246203,-150.0,0.00020318,2]
[326470715,1714960246214,-150.0,0.00020329,2]
[326470716,1714960246224,-300.0,0.00020345,2]
[326470717,1714960246235,-300.0,0.00020348,2]
[326470718,1714960246245,-25891.9154694,0.00020358,2]
[326470719,1714960246258,-150.0,0.00020362,2]
[326470720,1714960246273,-150.0,0.00020363,2]
[326470721,1714960246283,-155.0,0.00020367,2]
[326470722,1714960246293,-1500.0,0.00020378,2]
[326470723,1714960246303,-1500.0,0.00020389,2]
[326470724,1714960246314,-1500.0,0.00020391,2]
[326470725,1714960246324,-150.0,0.00020395,2]
[326470726,1714960246335,-150.0,0.000204,2]
[326470727,1714960246346,-1500.0,0.00020401,2]
[326470728,1714960246358,-1500.0,0.00020408,2]
[326470729,1714960246369,-1500.0,0.00020413,2]
[326470730,1714960246379,-1500.0,0.00020418,2]
[326470731,1714960246390,-150.0,0.00020434,2]
[326470732,1714960246400,-1500.0,0.00020444,2]
[326470733,1714960246410,-1500.0,0.00020457,2]
[326470734,1714960246429,-150.0,0.00020462,2]
[326470735,1714960246442,-150.0,0.00020466,2]
[326470736,1714960246452,-150.0,0.00020477,2]
[326470737,1714960246462,-150.0,0.0002049,2]
[326470738,1714960246472,-1500.0,0.000205,2]
[326470739,1714960246482,-1000.0,0.000205,2]
[326470740,1714960246492,-150.0,0.000205,2]
[326470741,1714960246515,-150.0,0.00020502,2]
[326470742,1714960246526,-1500.0,0.00020507,2]
[326470743,1714960246536,-1500.0,0.00020522,2]
[326470744,1714960246546,-1500.0,0.00020523,2]
[326470745,1714960246556,-1500.0,0.00020527,2]
[326470746,1714960246566,-1500.0,0.00020528,2]
[326470747,1714960246582,-1500.0,0.00020529,2]
[326470748,1714960246595,-1500.0,0.00020534,2]
[326470750,1714960246604,-1500.0,0.00020541,2]
[326470751,1714960246614,-1500.0,0.00020542,2]
[326470752,1714960246624,-300.0,0.00020542,2]
[326470753,1714960246635,-1423.54895211,0.00020547,2]
[326470754,1714960246645,-290.555233,0.00020548,2]
[326470755,1714960246657,-1500.0,0.00020548,2]
[326470756,1714960246670,-4557.558134,0.00020549,2]
[326470757,1714960246680,-778.084847,0.00020549,2]
[326470758,1714960246692,-1500.0,0.00020551,2]
[326470759,1714960246702,-1500.0,0.00020553,2]
[326470760,1714960246712,-1500.0,0.00020556,2]
[326470761,1714960246722,-1500.0,0.00020556,2]
[326470762,1714960246732,-1500.0,0.00020563,2]
[326470763,1714960246742,-1500.0,0.00020566,2]
[326470764,1714960246760,-300.0,0.00020569,2]
[326470765,1714960246770,-293.54017198,0.00020573,2]
[326470766,1714960246780,-1473.40580703,0.00020573,2]
[326470767,1714960246790,-155.0,0.00020573,2]
[326470768,1714960246799,-155.0,0.00020573,2]
[326470769,1714960246809,-37419.29873334,0.00020573,2]
[326470770,1714960246819,-546868.86783194,0.00020573,2]
[326470771,1714960246832,-500.0,0.00020573,2]
[326470772,1714960246841,-443.84791967,0.00020573,2]
[326470773,1714960246851,-409.09518751,0.00020573,2]
[326470774,1714960246861,-1037.51160232,0.00020573,2]
[326470775,1714960246871,-7508.38411684,0.00020573,2]
[326470776,1714960246880,-547.62562028,0.00020573,2]
[326470777,1714960246890,-155.0,0.00020573,2]
[326470778,1714960246900,-366.24814165,0.00020573,2]
[326470779,1714960246916,-257.72233972,0.00020573,2]
[326470780,1714960246926,-151.0,0.00020573,2]
[326470781,1714960246935,-247.2906,0.00020573,2]
[326470782,1714960246946,-247.2906,0.00020573,2]
[326470783,1714960246955,-150.0,0.00020573,2]
[326470784,1714960246967,-150.7342128,0.00020573,2]
[326470785,1714960246979,-26677.99126733,0.00020582,2]
[326470786,1714960246994,-1500.0,0.00020593,2]
[326470787,1714960247004,-1500.0,0.00020594,2]
[326470788,1714960247014,-150.0,0.00020594,2]
[326470789,1714960247024,-150.0,0.00020597,2]
[326470790,1714960247033,-1500.0,0.00020604,2]
[326470791,1714960247044,-1500.0,0.00020605,2]
[326470792,1714960247056,-1500.0,0.00020615,2]
[326470793,1714960247069,-1500.0,0.0002062,2]
[326470794,1714960247079,-1500.0,0.00020631,2]
[326470795,1714960247089,-1500.0,0.00020634,2]
[326470796,1714960247098,-1500.0,0.0002064,2]
[326470797,1714960247108,-150.0,0.0002064,2]
[326470798,1714960247118,-1500.0,0.00020642,2]
[326470799,1714960247128,-1500.0,0.00020643,2]
[326470800,1714960247137,-1500.0,0.00020649,2]
[326470801,1714960247149,-300.0,0.00020652,2]
[326470802,1714960247159,-302.74180095,0.00020653,2]
[326470803,1714960247170,-1500.0,0.00020658,2]
[326470804,1714960247179,-1500.0,0.00020658,2]
[326470805,1714960247191,-232.0,0.0002066,2]
[326470806,1714960247200,-1500.0,0.00020668,2]
[326470807,1714960247210,-1500.0,0.00020679,2]
[326470808,1714960247219,-151.07608845,0.00020707,2]
[326470809,1714960247232,-1500.0,0.00020714,2]
[326470810,1714960247242,-150.0,0.00020718,2]
[326470811,1714960247251,-1500.0,0.00020725,2]
[326470812,1714960247261,-1500.0,0.00020738,2]
[326470813,1714960247271,-671.29,0.00020739,2]
[326470814,1714960247281,-150.0,0.00020744,2]
[326470815,1714960247291,-150.0,0.00020769,2]
[326470816,1714960247300,-1500.0,0.00020782,2]
[326470817,1714960247317,-1500.0,0.00020783,2]
[326470818,1714960247327,-911.93,0.00020795,2]
[326470819,1714960247336,-911.93,0.00020795,2]
[326470820,1714960247346,-1500.0,0.000208,2]
[326470821,1714960247356,-1500.0,0.000208,2]
[326470822,1714960247365,-1500.0,0.00020809,2]
[326470823,1714960247375,-151.060256,0.00020809,2]
[326470824,1714960247384,-1500.0,0.00020818,2]
[326470825,1714960247398,-150.0,0.00020822,2]
[326470826,1714960247408,-1500.0,0.00020829,2]
[326470827,1714960247418,-1500.0,0.00020839,2]
[326470828,1714960247427,-150.0,0.00020845,2]
[326470829,1714960247438,-1500.0,0.00020852,2]
[326470830,1714960247447,-1500.0,0.00020854,2]
[326470831,1714960247457,-300.0,0.00020854,2]
[326470832,1714960247472,-300.0,0.00020854,2]
[326470833,1714960247481,-1500.0,0.00020858,2]
[326470834,1714960247491,-33386.81513356,0.00020871,2]
[326470835,1714960247501,-1500.0,0.00020876,2]
[326470836,1714960247510,-1500.0,0.00020886,2]
[326470837,1714960247520,-1500.0,0.00020892,2]
[326470838,1714960247530,-1500.0,0.00020895,2]
[326470839,1714960247539,-155.0,0.000209,2]
[326470840,1714960247550,-468.56,0.000209,2]
[326470841,1714960247560,-1500.0,0.00020904,2]
[326470842,1714960247570,-1500.0,0.00020905,2]
[326470843,1714960247579,-200.0,0.00020906,2]
[326470844,1714960247588,-1500.0,0.00020912,2]
[326470845,1714960247598,-150.0,0.00020912,2]
[326470846,1714960247608,-150.0,0.00020917,2]
[326470847,1714960247617,-1500.0,0.00020923,2]
[326470848,1714960247631,-1500.0,0.0002094,2]
[326470849,1714960247641,-1500.0,0.00020947,2]
[326470850,1714960247650,-1500.0,0.00020948,2]
[326470851,1714960247659,-1500.0,0.0002095,2]
[326470852,1714960247669,-1500.0,0.00020958,2]
[326470853,1714960247678,-500.0,0.0002097,2]
[326470854,1714960247688,-1500.0,0.00020972,2]
[326470855,1714960247697,-1500.0,0.00020976,2]
[326470856,1714960247708,-1500.0,0.00020978,2]
[326470857,1714960247717,-1500.0,0.00020982,2]
[326470858,1714960247726,-1500.0,0.00020985,2]
[326470859,1714960247736,-1500.0,0.00020991,2]
[326470860,1714960247745,-1500.0,0.00020991,2]
[326470861,1714960247755,-752.52089332,0.00020996,2]
[326470862,1714960247764,-716.58965222,0.00021,2]
[326470863,1714960247774,-200.0,0.00021,2]
[326470864,1714960247788,-200.0,0.00021,2]
[326470865,1714960247798,-502.7054,0.00021,2]
[326470866,1714960247807,-158.714338,0.00021,2]
[326470867,1714960247816,-1000.0,0.00021,2]
[326470868,1714960247826,-150.0,0.00021,2]
[326470869,1714960247835,-17326.4200057,0.00021073,2]
[326470870,1714960248472,-15805.70244305,0.00021073,2]
[326470871,1714960248481,-151.0,0.00021073,2]
[326470872,1714960248493,-247.2906,0.00021073,2]
[326470873,1714960248503,-247.2906,0.00021073,2]
[326470874,1714960248513,-200.0,0.00021115,2]
[326470875,1714960248522,-151.0,0.00021117,30]
[326470876,1714960248531,-775.26,0.000212,2]
[326470877,1714960248540,-960.58,0.000212,2]
[326470878,1714960248549,-422.72,0.0002126,2]
[326470879,1714960248558,-929.04,0.0002126,2]
[326470880,1714960248578,-911.93,0.0002126,2]
[326470881,1714960248592,-414.53,0.0002126,2]
[326470882,1714960248602,-414.53,0.0002126,2]
[326470883,1714960248611,-911.93,0.0002126,2]
[326470884,1714960248620,-414.53,0.0002126,2]
[326470885,1714960248629,-911.93,0.0002126,2]
[326470886,1714960248638,-200.0,0.00021326,2]
[326470887,1714960248648,-1191.38775658,0.0002135,2]
[326470888,1714960248662,-287.63374765,0.0002135,2]
[326470889,1714960248671,-828.72,0.0002137,2]
[326470890,1714960248681,-290.555233,0.0002137,2]
[326470891,1714960248691,-150.0,0.000215,3]
[326470892,1714960248701,-232.0,0.0002151,2]
[326470893,1714960248710,-200.0,0.00021539,2]
[326470894,1714960248719,-151.0,0.00021548,7]
[326470895,1714960248739,-200.0,0.00021755,2]
[326470896,1714960248749,-155.0,0.00021816,2]
[326470897,1714960248758,-314.17535094,0.0002184,2]
[326470898,1714960248767,-6758.87283024,0.000219,2]
[326470899,1714960248777,-2000.0,0.00021918,2]
[326470900,1714960248786,-2000.0,0.00021918,3]
[326470901,1714960248798,-250.0,0.00021918,2]
[326470902,1714960248807,-250.0,0.00021918,2]
[326470903,1714960248820,-157.01474783,0.00021918,2]
[326470904,1714960248831,-240.96087985,0.00021939,2]
[326470905,1714960248842,-151.0,0.00021988,4]
[326470906,1714960248852,-4937.03461837,0.00022,2]
[326470907,1714960248862,-550.0,0.00022,3]
[326470908,1714960248874,-150.0,0.00022,3]
[326470909,1714960248890,-154.83275652,0.00022097,2]
[326470910,1714960248901,-299.58439979,0.0002217,2]
[326470911,1714960248911,-290.555233,0.00022192,2]
[326470912,1714960248920,-2301.0,0.00022209,2]
[326470913,1714960248930,-971.0,0.00022209,2]
[326470914,1714960248939,-463.0,0.00022209,2]
[326470915,1714960248949,-1397.0,0.00022209,2]
[326470916,1714960248958,-1227.0,0.00022209,2]
[326470917,1714960248975,-1259.0,0.00022209,2]
[326470918,1714960248985,-543.0,0.00022209,2]
[326470919,1714960248994,-611.0,0.00022209,2]
[326470920,1714960249004,-808.0,0.00022209,2]
[326470921,1714960249015,-1787.0,0.00022209,2]
[326470922,1714960249025,-438.0,0.00022209,2]
[326470923,1714960249035,-1477.0,0.00022209,2]
[326470924,1714960249048,-2451.0,0.00022209,2]
[326470925,1714960249060,-421.0,0.00022209,2]
[326470926,1714960249070,-1139.0,0.00022209,2]
[326470927,1714960249080,-215.0,0.00022209,2]
[326470928,1714960249089,-444.0,0.00022209,2]
[326470929,1714960249099,-1644.0,0.00022209,2]
[326470930,1714960249108,-3152.0,0.00022209,2]
[326470931,1714960249118,-288.0,0.00022209,2]
[326470932,1714960249130,-37783.0,0.00022209,2]
[326470933,1714960249140,-2294.0,0.00022209,2]
[326470934,1714960249150,-3115.02803579,0.00022209,2]
[326470935,1714960250893,-151.0,0.00013,2]
[326470936,1714960250904,-151.0,0.00016169,2]
[326470937,1714960250914,-726.59370948,0.00016209,2]
[326470938,1714960250930,-331.40629052,0.00016209,2]
[326470939,1714960250942,-151.0,0.00018207,2]
[326470940,1714960250952,-3041.02650948,0.00018636,2]
[326470941,1714960250964,-3279.96825705,0.00018636,2]
[326470942,1714960250978,-1058.0,0.00019209,2]
[326470943,1714960250989,-151.0,0.0002,2]
[326470944,1714960250999,-150.0,0.00020242,2]
[326470945,1714960251013,-150.0,0.00020359,2]
[326470946,1714960251023,-150.0,0.00020399,2]
[326470947,1714960251033,-150.0,0.00020413,2]
[326470948,1714960251043,-150.0,0.00020435,2]
[326470949,1714960251055,-150.0,0.00020437,2]
[326470950,1714960251065,-150.0,0.0002047,2]
[326470951,1714960251074,-150.0,0.00020476,2]
[326470952,1714960251088,-150.0,0.00020503,2]
[326470953,1714960251098,-150.0,0.0002051,2]
[326470954,1714960251108,-150.0,0.00020518,2]
[326470955,1714960251118,-150.0,0.00020523,2]
[326470956,1714960251127,-150.0,0.00020524,2]
[326470957,1714960251137,-150.0,0.00020531,2]
[326470958,1714960251147,-150.0,0.00020542,2]
[326470959,1714960251159,-150.0,0.00020557,2]
[326470960,1714960251170,-150.0,0.00020581,2]
[326470961,1714960251180,-150.0,0.00020595,2]
[326470962,1714960251191,-150.0,0.00020634,2]
[326470963,1714960251201,-150.0,0.00020643,2]
[326470964,1714960251210,-150.0,0.00020664,2]
[326470965,1714960251219,-150.0,0.00020668,2]
[326470966,1714960251230,-150.0,0.00020672,2]
[326470967,1714960251242,-150.0,0.00020675,2]
[326470968,1714960251252,-150.0,0.00020709,2]
[326470969,1714960251262,-150.0,0.00020742,2]
[326470970,1714960251272,-150.0,0.00020743,2]
[326470971,1714960251283,-150.0,0.00020745,2]
[326470972,1714960251293,-150.0,0.00020757,2]
[326470973,1714960251303,-150.0,0.00020759,2]
[326470974,1714960251316,-150.0,0.00020797,3]
[326470975,1714960251326,-150.0,0.00020809,2]
[326470976,1714960251336,-150.0,0.00020853,2]
[326470977,1714960251346,-150.0,0.00020859,2]
[326470978,1714960251356,-150.0,0.00020859,2]
[326470979,1714960251367,-150.0,0.00020873,2]
[326470980,1714960251377,-150.0,0.00020893,2]
[326470981,1714960251388,-150.0,0.00020937,2]
[326470982,1714960251642,-150.0,0.00020944,2]
[326470983,1714960251669,-150.0,0.00020983,2]
[326470984,1714960251679,-150.0,0.00021979,3]
[326470985,1714960251693,-2626.97196421,0.00022209,2]
[326470986,1714960251702,-5904.0,0.00022209,2]
[326470987,1714960251712,-150.0,0.00022209,2]
[326470988,1714960251722,-1058.0,0.00022209,2]
[326470989,1714960251731,-414.53,0.00022219,2]
[326470990,1714960251740,-911.93,0.00022219,2]
[326470991,1714960251749,-911.93,0.00022219,2]
[326470992,1714960251758,-825.99,0.00022219,2]
[326470993,1714960251770,-911.93,0.00022219,2]
[326470994,1714960251779,-1801.21,0.00022219,2]
[326470995,1714960251788,-232.0,0.0002236,2]
[326470996,1714960251798,-151.0,0.00022436,2]
[326470997,1714960251807,-302.46,0.00022493,2]
[326470998,1714960251817,-300.56,0.00022493,2]
[326470999,1714960251826,-150.68,0.00022493,2]
[326471000,1714960251836,-325.73,0.00022493,2]
[326471001,1714960251847,-300.64,0.00022493,2]
[326471002,1714960251857,-586.18,0.00022493,2]
[326471003,1714960251866,-1044.82,0.00022493,2]
[326471004,1714960251875,-150.0,0.00022493,2]
[326471005,1714960251884,-150.0,0.00022493,2]
[326471006,1714960251894,-19558.48525396,0.000225,2]
[326471007,1714960251903,-150.0,0.000225,3]
[326471008,1714960251912,-159.79220094,0.00022527,2]
[326471009,1714960251925,-26677.99126733,0.00022527,2]
[326471010,1714960251934,-154.83275652,0.00022545,2]
[326471011,1714960251945,-468.56,0.000226,2]
[326471012,1714960251955,-150.0,0.00022605,2]
[326471013,1714960251965,-150.0,0.00022605,2]
[326471014,1714960251979,-150.0,0.00022605,2]
[326471015,1714960251988,-240.96087985,0.00022665,2]
[326471016,1714960251997,-775.26,0.000227,2]
[326471017,1714960252007,-960.58,0.000227,2]
[326471018,1714960252016,-151.0,0.00022707,7]
[326471019,1714960252025,-247.2906,0.00022707,7]
[326471020,1714960252035,-247.2906,0.00022707,7]
[326471021,1714960252046,-33132.12244875,0.00022707,2]
[326471022,1714960252055,-159.79220094,0.00022743,2]
[326471023,1714960252064,-160.28510481,0.00022838,2]
[326471024,1714960252078,-2213.52764123,0.00022964,2]
[326471025,1714960252087,-17696.62084202,0.00023,2]
[326471026,1714960252096,-3000.0,0.00023,2]
[326471027,1714960252105,-150.0,0.00023,3]
[326471028,1714960252114,-290.555233,0.00023014,2]
[326471029,1714960252123,-152.76860685,0.00023046,2]
[326471030,1714960252132,-240.96087985,0.00023165,2]
[326471031,1714960252141,-150.0,0.00023178,2]
[326471032,1714960252156,-150.0,0.00023178,2]
[326471033,1714960252167,-414.89,0.00023178,2]
[326471034,1714960252177,-150.0,0.00023178,2]
[326471035,1714960252186,-150.0,0.00023178,2]
[326471036,1714960252195,-564.29,0.00023178,2]
[326471037,1714960252205,-167.87727307,0.00023198,2]
[326471038,1714960252214,-232.0,0.0002321,2]
[326471039,1714960252223,-152.76860685,0.00023214,2]
[326471040,1714960252239,-240.96087985,0.00023319,2]
[326471041,1714960252249,-2000.93957158,0.000234,2]
[326471042,1714960252258,-150.0,0.000235,3]
[326471043,1714960252268,-240.96087985,0.00023503,2]
[326471044,1714960252277,-299.58439979,0.00023557,2]
[326471045,1714960252287,-158.12410264,0.00023567,2]
[326471046,1714960252296,-240.96087985,0.00023686,2]
[326471047,1714960252310,-154.5676832,0.00023781,2]
[326471048,1714960252319,-154.83275652,0.00023792,2]
[326471049,1714960252329,-290.555233,0.00023836,2]
[326471050,1714960252338,-240.96087985,0.00023938,2]
[326471051,1714960252347,-432.0257933,0.00024,2]
[326471052,1714960252357,-455.00575217,0.00024,2]
[326471053,1714960252366,-600.0,0.00024,3]
[326471054,1714960252380,-150.0,0.00024,4]
[326471055,1714960252389,-232.0,0.0002406,2]
[326471056,1714960252399,-775.26,0.000241,2]
[326471057,1714960252408,-960.58,0.000241,2]
[326471058,1714960252417,-314.17535094,0.000241,2]
[326471059,1714960252427,-468.56,0.000242,2]
[326471060,1714960252436,-154.31905418,0.00024272,2]
[326471061,1714960252446,-257.31233022,0.0002429,7]
[326471062,1714960252460,-4937.03461837,0.000243,2]
[326471063,1714960252469,-33132.12244875,0.00024342,2]
[326471064,1714960252479,-152.67353959,0.00024435,2]
[326471065,1714960252488,-26677.99126733,0.00024473,2]
[326471066,1714960252498,-150.0,0.000245,4]
[326471067,1714960252507,-163.76847842,0.00024533,2]
[326471068,1714960252516,-299.58439979,0.00024627,2]
[326471069,1714960252525,-290.555233,0.00024658,2]
[326471070,1714960252536,-966.45,0.00024658,2]
[326471071,1714960252545,-467.95,0.00024658,2]
[326471072,1714960252554,-240.96087985,0.00024695,2]
[326471073,1714960252563,-154.83275652,0.00024715,2]
[326471074,1714960252573,-232.0,0.0002491,2]
[326471075,1714960252582,-240.96087985,0.00024927,2]
[326471076,1714960252591,-151.0,0.00024929,2]
[326471077,1714960252602,-250.49088,0.00024929,2]
[326471078,1714960252612,-151.35,0.00024959,2]
[326471079,1714960252622,-2218.26332743,0.00025,2]
[326471080,1714960252632,-2607.3114918,0.00025,2]
[326471081,1714960252641,-471.49840129,0.00025,2]
[326471082,1714960252650,-155.0,0.00025,2]
[326471083,1714960252659,-155.27267932,0.00025,2]